fUSD/lending_fUSD_20241105
["ID","MTS","AMOUNT","RATE_DAILY","PERIOD"]
[341364802,1730838641475,-150.0,0.00040274,2]
[341364803,1730838641485,-150.0,0.00040274,2]
[341364804,1730838641494,-150.0,0.00040274,2]
[341364805,1730838641504,-150.0,0.00040274,2]
[341364806,1730838641514,-150.0,0.00040274,2]
[341364807,1730838641523,-150.0,0.00040274,2]
[341364808,1730838641533,-150.0,0.00040274,2]
[341364809,1730838641543,-150.0,0.00040274,2]
[341364810,1730838641553,-150.0,0.00040274,2]
[341364811,1730838641564,-150.0,0.00040274,2]
[341364812,1730838641574,-150.0,0.00040274,2]
[341364813,1730838641583,-150.0,0.00040274,2]
[341364814,1730838641592,-150.0,0.00040274,2]
[341364815,1730838641601,-150.0,0.00040274,2]
[341364816,1730838641612,-150.0,0.00040274,2]
[341364817,1730838641624,-150.0,0.00040274,2]
[341364818,1730838641633,-150.0,0.00040274,2]
[341364819,1730838641643,-150.0,0.00040274,2]
[341364820,1730838641652,-150.0,0.00040274,2]
[341364821,1730838641661,-300.0,0.00040274,2]
[341364822,1730838641670,-156.75,0.000403,31]
[341364823,1730838641680,-156.75,0.000403,31]
[341364824,1730838641689,-1178.0,0.000405,40]
[341364825,1730838641698,-152.0,0.00040793,3]
[341364826,1730838641707,-500.0,0.00040894,120]
[341364827,1730838641716,-233.05,0.00040952,2]
[341364828,1730838641726,-50000.0,0.00041,31]
[341364829,1730838641735,-1000.0,0.00041,2]
[341364830,1730838641745,-5494.44449956,0.00041,2]
[341364831,1730838641754,-7427.86622482,0.00041,90]
[341364832,1730838641763,-10500.24644103,0.00041,30]
[341364833,1730838641772,-5000.0,0.00041005,2]
[341364834,1730838641781,-25000.0,0.00041037,2]
[341364835,1730838641790,-8500.0,0.0004105,11]
[341364836,1730838641799,-1278.98,0.00041054,2]
[341364837,1730838641808,-8500.0,0.00041058,11]
[341364838,1730838641818,-5000.0,0.00041084,2]
[341364839,1730838641827,-5729.43660662,0.00041095,11]
[341364840,1730838641836,-893.93,0.00041096,120]
[341364841,1730838641845,-157.0,0.00041096,2]
[341364842,1730838641854,-150.0,0.00041096,2]
[341364843,1730838641863,-432.46,0.00041096,2]
[341364844,1730838641874,-150.0,0.00041096,2]
[341364845,1730838641883,-150.0,0.00041096,2]
[341364846,1730838641893,-432.46,0.00041096,2]
[341364847,1730838641903,-432.46,0.00041096,2]
[341364848,1730838641912,-150.0,0.00041096,2]
[341364849,1730838641921,-303.52,0.00041096,2]
[341364850,1730838641931,-150.0,0.00041096,2]
[341364851,1730838641940,-432.46,0.00041096,2]
[341364852,1730838641949,-432.46,0.00041096,2]
[341364853,1730838641958,-150.0,0.00041096,2]
[341364854,1730838641967,-150.0,0.00041096,2]
[341364855,1730838641976,-432.46,0.00041096,2]
[341364856,1730838641991,-432.46,0.00041096,2]
[341364857,1730838642009,-150.0,0.00041096,2]
[341364858,1730838642025,-432.46,0.00041096,2]
[341364859,1730838642042,-150.0,0.00041096,2]
[341364860,1730838642061,-432.46,0.00041096,2]
[341364861,1730838642077,-150.0,0.00041096,2]
[341364862,1730838642094,-150.0,0.00041096,2]
[341364863,1730838642109,-432.46,0.00041096,2]
[341364864,1730838642125,-182.57184193,0.000411,2]
[341364865,1730838642142,-2503.21682814,0.000411,2]
[341364866,1730838642161,-1579.11942746,0.000411,2]
[341364867,1730838642177,-20495.98,0.00041118,2]
[341364868,1730838642192,-5000.0,0.00041122,2]
[341364869,1730838642208,-1761.06,0.00041175,2]
[341364870,1730838642226,-263.76,0.00041203,120]
[341364871,1730838642238,-3396.54,0.00041221,2]
[341364872,1730838642253,-5000.0,0.00041224,2]
[341364873,1730838642268,-10000.0,0.00041244,4]
[341364875,1730838642285,-2705.25,0.00041259,2]
[341364878,1730838642299,-5000.0,0.00041294,2]
[341364881,1730838642313,-5000.0,0.00041308,2]
[341364883,1730838642328,-1000.0,0.0004137,2]
[341364887,1730838642342,-194.41,0.00041429,120]
[341364888,1730838642356,-5000.0,0.00041463,2]
[341364889,1730838642369,-5000.0,0.00041484,2]
[341364890,1730838642384,-5000.0,0.00041496,2]
[341364892,1730838642398,-2610.01,0.00041561,2]
[341364894,1730838642412,-151.0,0.00041561,14]
[341364895,1730838642426,-151.0,0.00041561,14]
[341364896,1730838642441,-5000.0,0.00041584,2]
[341364897,1730838642455,-151.0,0.00041584,14]
[341364898,1730838642470,-4427.6,0.00041587,2]
[341364899,1730838642485,-5000.0,0.00041589,2]
[341364900,1730838642500,-151.0,0.00041589,14]
[341364901,1730838642515,-5000.0,0.00041592,2]
[341364902,1730838642529,-5000.0,0.00041608,2]
[341364903,1730838642543,-1411.74,0.00041618,2]
[341364904,1730838642557,-1675.17,0.00041629,2]
[341364905,1730838642572,-3018.48,0.0004164,2]
[341364906,1730838642586,-500.0,0.00041644,60]
[341364907,1730838642600,-500.0,0.00041644,60]
[341364908,1730838642614,-500.0,0.0004166,90]
[341364909,1730838642629,-500.0,0.0004166,90]
[341364910,1730838642644,-500.0,0.0004166,90]
[341364911,1730838642658,-500.0,0.0004166,90]
[341364912,1730838642672,-500.0,0.0004166,90]
[341364913,1730838642685,-631.0,0.0004166,90]
[341364914,1730838642700,-5000.0,0.000417,2]
[341364915,1730838642715,-1000.0,0.00041739,2]
[341364916,1730838642728,-157.853,0.00041803,120]
[341364917,1730838642742,-25000.0,0.00041863,2]
[341364918,1730838642756,-6094.60551436,0.00041863,15]
[341364919,1730838642770,-3914.03,0.00041864,2]
[341364921,1730838642785,-150.0,0.00041918,30]
[341364923,1730838642800,-150.0,0.00041918,30]
[341364926,1730838642814,-150.0,0.00041918,30]
[341364928,1730838642828,-150.0,0.00041918,30]
[341364930,1730838642843,-150.0,0.00041939,2]
[341364933,1730838642856,-4147.07,0.00041981,2]
[341364935,1730838642873,-50000.0,0.00042,32]
[341364937,1730838642895,-9445.66076053,0.00042,30]
[341364939,1730838642918,-3000.0,0.00042,68]
[341364942,1730838642932,-3000.0,0.00042,62]
[341364944,1730838642948,-8884.05417983,0.00042,2]
[341364946,1730838642963,-521.0,0.00042,19]
[341364949,1730838642978,-900.0,0.00042,43]
[341364963,1730838643125,-10000.0,0.00042,50]
[341364965,1730838643140,-156.75,0.00042,31]
[341364967,1730838643150,-156.75,0.00042,31]
[341364969,1730838643160,-470940.78712123,0.00042,30]
[341364971,1730838643170,-151.0,0.00042,14]
[341364973,1730838643179,-1317.53124152,0.0004201,2]
[341364975,1730838643189,-502.57,0.00042029,2]
[341364977,1730838643199,-186.45,0.00042128,120]
[341364979,1730838643209,-150.0,0.00042165,30]
[341364981,1730838643218,-150.0,0.00042165,30]
[341364982,1730838643228,-150.0,0.00042165,30]
[341364984,1730838643237,-236.52962121,0.00042165,30]
[341364986,1730838643246,-150.0,0.00042165,30]
[341364988,1730838643256,-182.8597271,0.00042165,30]
[341364990,1730838643265,-222.84512568,0.00042165,30]
[341364992,1730838643275,-150.0,0.00042177,2]
[341364994,1730838643285,-150.110604,0.00042198,120]
[341364996,1730838643295,-584.05409861,0.00042303,14]
[341364998,1730838643305,-157.55,0.00042374,2]
[341365000,1730838643315,-3773.16461693,0.000424,2]
[341365002,1730838643325,-500.0,0.00042408,120]
[341365003,1730838643335,-150.110604,0.00042498,120]
[341365005,1730838643345,-7478.63441475,0.00042666,2]
[341365007,1730838643354,-4145.0,0.000427,117]
[341365009,1730838643364,-401.22140826,0.0004274,60]
[341365011,1730838643375,-500.0,0.0004274,60]
[341365013,1730838643386,-150.110604,0.00042798,120]
[341365015,1730838643395,-44693.25644816,0.000428,2]
[341365017,1730838643405,-999.73415646,0.000428,60]
[341365019,1730838643415,-151.0,0.00042824,14]
[341365021,1730838643424,-9046.04505419,0.00042874,10]
[341365023,1730838643434,-151.0,0.00042874,14]
[341365025,1730838643443,-5000.0,0.000429,120]
[341365026,1730838643453,-151.0,0.000429,14]
[341365028,1730838643463,-50000.0,0.00043,33]
[341365030,1730838643478,-353.80715578,0.00043,30]
[341365033,1730838643490,-1000.0,0.00043,120]
[341365034,1730838643500,-1000.0,0.00043,120]
[341365036,1730838643511,-1000.0,0.00043,120]
[341365038,1730838643520,-1000.0,0.00043,120]
[341365040,1730838643530,-1000.0,0.00043,120]
[341365042,1730838643540,-1000.0,0.00043,120]
[341365044,1730838643555,-500.0,0.00043,120]
[341365046,1730838643565,-841.95074381,0.00043,120]
[341365048,1730838643574,-340.6595562,0.00043,120]
[341365050,1730838643583,-1000.0,0.00043,2]
[341365052,1730838643592,-1781.0,0.00043,120]
[341365054,1730838643602,-62925.20276532,0.00043,2]
[341365056,1730838643611,-900.0,0.00043,44]
[341365058,1730838643621,-200.0,0.00043,2]
[341365060,1730838643632,-1207.71086726,0.00043,120]
[341365062,1730838643641,-9908.10902798,0.00043,5]
[341365064,1730838643651,-69113.78434155,0.00043,30]
[341365066,1730838643660,-151.0,0.00043,14]
[341365068,1730838643670,-981.93304345,0.00043025,2]
[341365070,1730838643679,-12009.36574438,0.00043047,2]
[341365072,1730838643689,-83477.23469696,0.00043081,2]
[341365073,1730838643698,-151.0,0.00043081,14]
[341365075,1730838643707,-151.0,0.00043081,14]
[341365077,1730838643717,-151.0,0.00043081,14]
[341365079,1730838643726,-150.110604,0.00043198,120]
[341365081,1730838643735,-171089.0,0.000432,120]
[341365083,1730838643743,-151.0,0.000432,14]
[341365085,1730838643752,-855.14414653,0.000432,30]
[341365087,1730838643761,-150.0,0.00043259,2]
[341365089,1730838643770,-2004.23729085,0.000433,7]
[341365091,1730838643780,-170.9,0.000433,120]
[341365093,1730838643789,-151.0,0.00043303,14]
[341365095,1730838643798,-175.755984,0.00043303,14]
[341365097,1730838643807,-151.0,0.00043304,14]
[341365099,1730838643815,-151.0,0.00043304,14]
[341365101,1730838643825,-151.0,0.00043304,14]
[341365103,1730838643834,-151.0,0.00043304,14]
[341365105,1730838643844,-151.0,0.00043304,14]
[341365107,1730838643852,-151.0,0.00043304,14]
[341365109,1730838643862,-151.0,0.00043304,14]
[341365111,1730838643871,-151.0,0.00043304,14]
[341365113,1730838643880,-151.0,0.00043304,14]
[341365115,1730838643889,-151.0,0.00043304,14]
[341365117,1730838643898,-3000.0,0.00043304,120]
[341365119,1730838643907,-420.97537191,0.00043304,120]
[341365121,1730838643917,-170.3297781,0.00043304,120]
[341365123,1730838643926,-372.01567559,0.00043304,2]
[341365124,1730838643935,-150.0,0.00043304,2]
[341365126,1730838643944,-206.639999,0.00043304,2]
[341365128,1730838643953,-6000.0,0.00043304,2]
[341365130,1730838643963,-284.18217356,0.00043304,16]
[341365132,1730838643972,-1210.0,0.00043304,2]
[341365134,1730838643982,-3675.99854428,0.00043304,2]
[341365136,1730838643991,-342.96841726,0.00043304,2]
[341365138,1730838644000,-2960.50860248,0.00043304,2]
[341365139,1730838644009,-1719.2233314,0.00043304,15]
[341365140,1730838644018,-1497.46014967,0.00043304,2]
[341365141,1730838644027,-3121.6,0.00043304,2]
[341365142,1730838644036,-7267.02628618,0.00043304,2]
[341365143,1730838644045,-1013.79532234,0.00043304,2]
[341365144,1730838644054,-25628.0897826,0.00043304,30]
[341365145,1730838644064,-5105.99958711,0.00043304,2]
[341365146,1730838644073,-2691.56745538,0.00043304,2]
[341365147,1730838644086,-2417.64683767,0.00043304,2]
[341365148,1730838644095,-2637.66752624,0.00043304,2]
[341365150,1730838644104,-3198.308543,0.00043304,2]
[341365152,1730838644113,-1460.8531179,0.00043304,2]
[341365154,1730838644123,-288.09339575,0.00043304,120]
[341365156,1730838644132,-7604.27341313,0.00043304,2]
[341365158,1730838644142,-1052.51240392,0.00043304,2]
[341365160,1730838644151,-27220.85614205,0.00043304,30]
[341365161,1730838644161,-5881.69541811,0.00043304,2]
[341365163,1730838644171,-856.82508443,0.00043304,2]
[341365165,1730838644180,-351837.03671326,0.00043304,2]
[341365167,1730838644189,-255.25790185,0.00043304,2]
[341365169,1730838644199,-188.02622943,0.00043304,2]
[341365171,1730838644208,-9101.42756387,0.00043304,2]
[341365173,1730838644217,-1291.73313895,0.00043304,2]
[341365175,1730838644227,-4868.87711029,0.00043304,2]
[341365177,1730838644236,-292.39110453,0.00043304,2]
[341365179,1730838644246,-22701.59584422,0.00043304,30]
[341365181,1730838644255,-12646.40859381,0.00043304,2]
[341365184,1730838644265,-1892.74606651,0.00043304,2]
[341365186,1730838644274,-181.31915087,0.00043304,2]
[341365187,1730838644284,-5502.31725157,0.00043304,2]
[341365189,1730838644293,-564.54043715,0.00043304,2]
[341365192,1730838644302,-1810.00473714,0.00043304,2]
[341365194,1730838644311,-3196.50755085,0.00043304,2]
[341365196,1730838644320,-172.84450685,0.00043304,2]
[341365197,1730838644330,-150.0,0.00043304,2]
[341365199,1730838644339,-6984.39192481,0.00043304,2]
[341365201,1730838644349,-550.0,0.00043304,2]
[341365203,1730838644358,-1445.23712415,0.00043304,2]
[341365205,1730838644367,-993.4596023,0.00043304,2]
[341365208,1730838644379,-940.82655638,0.00043304,2]
[341365210,1730838644389,-10554.6537651,0.00043304,2]
[341365212,1730838644398,-171.19510168,0.00043304,2]
[341365214,1730838644408,-18276.98409293,0.00043304,2]
[341365216,1730838644417,-6000.0,0.00043304,2]
[341365218,1730838644426,-1018.2409573,0.00043304,2]
[341365220,1730838644435,-50000.0,0.00043304,30]
[341365222,1730838644444,-434.0,0.00043304,120]
[341365224,1730838644453,-554.99880455,0.00043304,2]
[341365225,1730838644463,-150.0,0.00043304,2]
[341365227,1730838644476,-34284.21539478,0.00043304,30]
[341365229,1730838644485,-2641.71291596,0.00043304,2]
[341365231,1730838644494,-26099.92119362,0.00043304,30]
[341365233,1730838644503,-443.19173223,0.00043304,2]
[341365235,1730838644513,-1051.90721483,0.00043304,2]
[341365237,1730838644522,-20969.23476902,0.00043304,2]
[341365239,1730838644531,-2500.0,0.00043304,2]
[341365241,1730838644540,-571.09524831,0.00043304,2]
[341365243,1730838644551,-2345.19900249,0.00043304,2]
[341365245,1730838644562,-100000.0,0.00043304,7]
[341365247,1730838644571,-531.27977112,0.00043304,2]
[341365249,1730838644581,-899.36399603,0.00043304,2]
[341365251,1730838644590,-474.77238023,0.00043304,2]
[341365253,1730838644599,-1563.62654731,0.00043304,2]
[341365255,1730838644608,-2000.0,0.00043304,2]
[341365257,1730838644617,-10836.95849593,0.00043304,2]
[341365259,1730838644628,-321.14906491,0.00043304,2]
[341365261,1730838644638,-26766.19427676,0.00043304,2]
[341365263,1730838644647,-539.82595937,0.00043304,2]
[341365265,1730838644656,-4934.54503701,0.00043304,2]
[341365267,1730838644666,-22679.49909977,0.00043304,2]
[341365269,1730838644675,-359.44123698,0.00043304,2]
[341365271,1730838644685,-2173.11042398,0.00043304,2]
[341365273,1730838644694,-279.52771567,0.00043304,2]
[341365275,1730838644704,-574.09017315,0.00043304,2]
[341365277,1730838644713,-23455.37867235,0.00043304,30]
[341365279,1730838644723,-56768.15299748,0.00043304,30]
[341365281,1730838644732,-8682.08759259,0.00043304,30]
[341365283,1730838644742,-6886.88289733,0.00043304,30]
[341365285,1730838644751,-217868.33684993,0.00043304,30]
[341365288,1730838644761,-699.12569399,0.00043304,120]
[341365290,1730838644771,-543.46757063,0.00043304,2]
[341365291,1730838644780,-217.09629517,0.00043304,2]
[341365294,1730838644790,-13859.04428633,0.00043304,2]
[341365296,1730838644799,-383.25,0.00043304,2]
[341365308,1730838644898,-1039.0,0.00043304,2]
[341365310,1730838644921,-1409.61570559,0.00043304,2]
[341365312,1730838644930,-199.72659264,0.00043304,2]
[341365313,1730838644939,-12808.64615623,0.00043304,2]
[341365315,1730838644949,-1877.61375863,0.00043304,30]
[341365317,1730838644959,-1856.83035337,0.00043304,2]
[341365319,1730838644969,-50000.0,0.00043304,19]
[341365321,1730838644978,-1003.0,0.00043304,30]
[341365323,1730838644988,-1003.0,0.00043304,30]
[341365325,1730838644997,-1003.0,0.00043304,30]
[341365327,1730838645007,-1003.0,0.00043304,30]
[341365329,1730838645016,-1003.0,0.00043304,30]
[341365331,1730838645026,-1003.0,0.00043304,30]
[341365333,1730838645036,-566.86917197,0.00043304,30]
[341365335,1730838645046,-1003.0,0.00043304,30]
[341365337,1730838645057,-22982.55695574,0.00043304,5]
[341365339,1730838645067,-167.0,0.00043304,120]
[341365341,1730838645076,-43701.67594069,0.00043304,120]
[341365343,1730838645085,-300.00042731,0.00043304,2]
[341365345,1730838645094,-210.0,0.00043314,14]
[341365347,1730838645103,-1000.000001,0.000434,120]
[341365349,1730838645112,-5000.0,0.000434,120]
[341365351,1730838645123,-284.160125,0.000434,19]
[341365353,1730838645132,-500.0,0.000434,120]
[341365355,1730838645142,-508.916,0.000434,120]
[341365357,1730838645151,-11733.86979652,0.0004345,120]
[341365359,1730838645161,-500.0,0.0004345,120]
[341365361,1730838645170,-6906.3167579,0.0004347,2]
[341365363,1730838645180,-2812.59112096,0.00043499,44]
[341365365,1730838645190,-7761.10984836,0.000435,2]
[341365368,1730838645199,-3043.991,0.000435,120]
[341365371,1730838645209,-9432.62726181,0.000435,60]
[341365373,1730838645219,-5044.98747974,0.000435,2]
[341365376,1730838645228,-15283.59927203,0.000435,2]
[341365379,1730838645237,-672700.60671336,0.000435,60]
[341365434,1730838645609,-331.15172322,0.000435,60]
[341365440,1730838647007,-863.9335,0.0002987,2]
[341365441,1730838647063,-1123.0665,0.0002987,2]
[341365442,1730838647073,-558.0,0.0002987,2]
[341365443,1730838647082,-178.62668689,0.00038999,2]
[341365444,1730838647092,-306.19,0.00041053,2]
[341365445,1730838647101,-150.0,0.00041096,2]
[341365446,1730838647109,-2078.969031,0.000435,60]
[341366111,1730839831650,-1412.39714948,0.000146,2]
[341366112,1730839831661,-1692.74399358,0.000146,2]
[341366113,1730839831671,-2115.004583,0.00014626,2]
[341366114,1730839831679,-1489.8530111,0.000147,2]
[341366115,1730839831689,-824.6525,0.00015016,2]
[341366116,1730839831698,-8585.2026257,0.00015216,2]
[341366117,1730839831707,-164.95576904,0.00015216,2]
[341366118,1730839831716,-157.55,0.00015342,2]
[341366119,1730839831726,-150.0,0.00015421,2]
[341366120,1730839831735,-478.39,0.00019726,2]
[341366121,1730839831744,-250.0,0.00021,2]
[341366122,1730839831753,-9999.99,0.00021,2]
[341366123,1730839831764,-300.0,0.00022999,2]
[341366124,1730839831773,-300.0,0.00023,2]
[341366125,1730839831783,-25662.3,0.00023,2]
[341366126,1730839831801,-150.99,0.00023,2]
[341366127,1730839831810,-3178.79,0.00024875,2]
[341366128,1730839831819,-350.0,0.00025,2]
[341366129,1730839831828,-2431.9733,0.00026082,2]
[341366130,1730839831838,-160.53,0.00028607,2]
[341366131,1730839831846,-417.0,0.000288,2]
[341366132,1730839831855,-500.0,0.0003071,30]
[341366133,1730839831865,-500.0,0.0003071,30]
[341366134,1730839831874,-500.0,0.0003071,30]
[341366136,1730839831883,-500.0,0.0003071,30]
[341366138,1730839831892,-500.0,0.0003071,30]
[341366140,1730839831900,-500.0,0.0003071,30]
[341366142,1730839831909,-118.91836655,0.0003071,30]
[341366146,1730839831943,-381.08163345,0.0003071,30]
[341366148,1730839831952,-500.0,0.0003071,30]
[341366149,1730839831961,-500.0,0.0003071,30]
[341366150,1730839831970,-500.0,0.0003071,30]
[341366151,1730839831978,-500.0,0.0003071,30]
[341366152,1730839831987,-500.0,0.0003071,30]
[341366153,1730839831996,-500.0,0.0003071,30]
[341366154,1730839832006,-524.08285744,0.0003071,30]
[341366155,1730839832017,-516.39806797,0.0003071,30]
[341366156,1730839832026,-500.0,0.0003071,30]
[341366157,1730839832037,-500.0,0.0003071,30]
[341366158,1730839832048,-500.0,0.0003071,30]
[341366159,1730839832167,-500.0,0.0003071,30]
[341366160,1730839832181,-500.0,0.0003071,30]
[341366161,1730839832190,-500.0,0.0003071,30]
[341366162,1730839832200,-500.0,0.0003071,30]
[341366163,1730839832211,-500.0,0.0003071,30]
[341366164,1730839832220,-500.0,0.0003071,30]
[341366165,1730839832230,-798.86438942,0.0003071,30]
[341366166,1730839832240,-500.0,0.0003071,30]
[341366167,1730839832251,-500.0,0.0003071,30]
[341366168,1730839832261,-500.0,0.0003071,30]
[341366169,1730839832270,-500.0,0.0003071,30]
[341366170,1730839832279,-531.73505082,0.0003071,30]
[341366171,1730839832291,-150.0,0.00033,14]
[341366172,1730839832301,-477.43,0.00033797,2]
[341366173,1730839832311,-150.0,0.00034548,10]
[341366174,1730839832321,-300.0,0.00035089,2]
[341366175,1730839832333,-150.67,0.00035216,120]
[341366176,1730839832345,-1133.8,0.00035315,2]
[341366177,1730839832354,-749.418,0.00035505,42]
[341366178,1730839832363,-157.55,0.00035616,2]
[341366179,1730839832372,-153.0,0.00035616,2]
[341366180,1730839832381,-153.0,0.00035616,2]
[341366181,1730839832391,-153.0,0.00035616,2]
[341366182,1730839832401,-153.0,0.00035616,2]
[341366183,1730839832410,-153.0,0.00035616,2]
[341366184,1730839832419,-153.0,0.00035616,2]
[341366185,1730839832429,-153.0,0.00035616,2]
[341366186,1730839832439,-153.0,0.00035616,2]
[341366187,1730839832449,-153.0,0.00035616,2]
[341366188,1730839832457,-153.0,0.00035616,2]
[341366189,1730839832468,-153.0,0.00035616,2]
[341366190,1730839832478,-153.0,0.00035616,2]
[341366191,1730839832488,-153.0,0.00035616,2]
[341366192,1730839832498,-153.0,0.00035616,2]
[341366193,1730839832507,-153.0,0.00035616,2]
[341366194,1730839832517,-153.0,0.00035616,2]
[341366195,1730839832528,-153.0,0.00035616,2]
[341366196,1730839832540,-153.0,0.00035616,2]
[341366197,1730839832550,-153.0,0.00035616,2]
[341366198,1730839832559,-153.0,0.00035616,2]
[341366199,1730839832568,-153.0,0.00035616,2]
[341366200,1730839832577,-153.0,0.00035616,2]
[341366201,1730839832596,-153.0,0.00035616,2]
[341366202,1730839832605,-200.0,0.00035655,2]
[341366203,1730839832615,-192.81,0.0003567,120]
[341366204,1730839832626,-175.84,0.00035696,120]
[341366205,1730839832637,-500.0,0.00035696,2]
[341366206,1730839832647,-250.0,0.00035697,2]
[341366207,1730839832658,-250.0,0.00035775,2]
[341366208,1730839832667,-250.0,0.00035825,120]
[341366209,1730839832676,-2704.52,0.00035829,2]
[341366210,1730839832686,-161.19,0.00036024,2]
[341366211,1730839832695,-2178.57,0.00036046,2]
[341366212,1730839832704,-477.43,0.00036061,2]
[341366213,1730839832713,-23900.0,0.00036135,2]
[341366214,1730839832722,-200.0,0.00036135,7]
[341366215,1730839832733,-166.35,0.00036767,2]
[341366216,1730839832743,-159.02144566,0.000372,103]
[341366217,1730839832752,-159.02144565,0.000372,103]
[341366218,1730839832761,-159.02144565,0.000372,103]
[341366219,1730839832770,-186.45,0.00037362,120]
[341366220,1730839832778,-1000.0,0.00037396,2]
[341366221,1730839832787,-168.6,0.00037491,2]
[341366222,1730839832796,-150.67,0.000378,120]
[341366223,1730839832811,-477.43,0.00038325,2]
[341366224,1730839832819,-161.19,0.00038426,2]
[341366225,1730839832828,-500.0,0.00038609,120]
[341366226,1730839832837,-500.0,0.00038998,2]
[341366227,1730839832846,-180.0,0.00039756,2]
[341366228,1730839832854,-159.02144565,0.00040262,120]
[341366229,1730839832863,-150.67,0.00040384,120]
[341366230,1730839832872,-500.0,0.00040498,120]
[341366231,1730839832881,-477.43,0.00040589,2]
[341366232,1730839832890,-5370.6579,0.00040807,2]
[341366233,1730839832901,-161.19,0.00040827,2]
[341366234,1730839832910,-22784.83100156,0.00041,10]
[341366237,1730839837855,-575.93,0.00035492,2]
[341366238,1730839837865,-1432.77142,0.00041,10]
[341366239,1730839837884,-21999.616,0.00041,10]
[341366386,1730839839683,-975.96316426,0.00041,10]
[341366401,1730839842703,-199.74931536,0.00040939,10]
[341366402,1730839842713,-1992.09152452,0.00041,10]
[341366403,1730839842868,-1118.978425,0.00041,10]
[341366404,1730839842924,-4472.25068476,0.00041,10]
[341366410,1730839845636,-166618.37761462,0.00041,10]
[341366411,1730839845646,-150.0,0.00041,10]
[341366412,1730839845656,-500.0,0.00041,10]
[341366413,1730839845666,-150.0,0.00041034,2]
[341366414,1730839845676,-150.0,0.00041096,2]
[341366415,1730839845686,-157.0,0.00041096,2]
[341366416,1730839845696,-150.0,0.00041105,2]
[341366417,1730839845706,-150.0,0.00041117,2]
[341366418,1730839845715,-150.0,0.0004115,2]
[341366419,1730839845725,-150.0,0.00041199,2]
[341366420,1730839845735,-150.0,0.00041207,2]
[341366421,1730839845744,-150.0,0.00041209,2]
[341366422,1730839845754,-500.0,0.000414,120]
[341366423,1730839845763,-1386.71731037,0.0004144,15]
[341366424,1730839845773,-151.24441385,0.0004144,28]
[341366425,1730839845782,-500.0,0.00041473,2]
[341366426,1730839845791,-150.0,0.00041482,2]
[341366427,1730839845801,-500.0,0.00041499,31]
[341366428,1730839845810,-578.73274218,0.00041499,31]
[341366429,1730839845823,-500.0,0.00041499,31]
[341366430,1730839845833,-637.82552511,0.00041499,31]
[341366431,1730839845842,-537.0,0.000415,7]
[341366432,1730839845852,-43522.59014258,0.000415,45]
[341366433,1730839845939,-3433.09428,0.000415,45]
[341366435,1730839845957,-16922.23394001,0.000415,45]
[341366436,1730839845966,-40540.0,0.000415,45]
[341366585,1730841031858,-157.02,0.00015342,2]
[341366586,1730841031868,-174.78,0.00015342,2]
[341366587,1730841031877,-150.0,0.00016095,2]
[341366588,1730841031889,-174.78,0.00021745,2]
[341366589,1730841031898,-532.0145,0.00027297,2]
[341366590,1730841031908,-1044.392728,0.00027397,2]
[341366591,1730841031918,-608.83175,0.00027397,2]
[341366592,1730841031927,-343.583449,0.00027397,2]
[341366593,1730841031939,-315.672991,0.00027397,2]
[341366594,1730841031948,-174.78,0.00028147,2]
[341366595,1730841031958,-2327.0,0.000288,2]
[341366596,1730841031967,-1499.14,0.000288,2]